bitfinex-derivatives/quotes_BTCF0:USTF0_20240903
["timestamp","ask_amount","ask_price","bid_price","bid_amount"]
[1725397988232,2.705333,58226.0,58225.0,0.3632]
[1725397989740,1.205333,58226.0,58225.0,0.3632]
[1725397990136,1.205333,58226.0,58225.0,0.0024]
[1725397990833,0.605333,58226.0,58225.0,0.0024]
[1725397991034,1.205333,58226.0,58225.0,0.0024]
[1725397993650,0.605333,58226.0,58225.0,0.0024]
[1725397993854,1.205333,58226.0,58225.0,0.0024]
[1725397994142,0.605333,58226.0,58225.0,0.0024]
[1725397994332,1.205333,58226.0,58225.0,0.0024]
[1725397994941,0.605333,58226.0,58225.0,0.0024]
[1725397995243,1.205333,58226.0,58225.0,0.0024]
[1725397996840,1.291226,58226.0,58225.0,0.0024]
[1725397997042,1.737919,58226.0,58225.0,0.0024]
[1725397997253,1.737919,58226.0,58209.0,0.10425783]
[1725397997254,0.171808,58219.0,58209.0,0.10425783]
[1725397997449,1.771808,58219.0,58218.0,0.08562887]
[1725397997745,2.887128,58219.0,58218.0,0.08562887]
[1725397999048,2.888128,58219.0,58218.0,0.08562887]
[1725398000336,2.888128,58219.0,58218.0,0.08662887]
[1725398000740,2.890128,58219.0,58218.0,0.08762887]
[1725398001839,2.790128,58219.0,58218.0,0.08762887]
[1725398002147,2.890128,58219.0,58218.0,0.08762887]
[1725398003144,2.890128,58219.0,58218.0,0.002]
[1725398003145,2.94152077,58219.0,58218.0,0.002]
[1725398004947,2.94192077,58219.0,58218.0,0.002]
[1725398006535,2.94577064,58219.0,58218.0,0.002]
[1725398008145,2.89437787,58219.0,58218.0,0.002]
[1725398009653,2.29437787,58219.0,58218.0,0.002]
[1725398013954,1.77905787,58219.0,58218.0,0.002]
[1725398014345,2.20838156,58219.0,58218.0,0.002]
[1725398014542,1.84758156,58219.0,58218.0,0.002]
[1725398014741,2.23247756,58219.0,58214.0,0.0513138]
[1725398014940,2.23247756,58219.0,58212.0,0.0513138]
[1725398014941,0.0004,58215.0,58212.0,0.0513138]
[1725398015242,0.185914,58212.0,58210.0,0.0513138]
[1725398015557,0.085917,58210.0,58209.0,0.00420489]
[1725398015754,0.172234,58210.0,58209.0,0.00420489]
[1725398020348,0.172234,58210.0,58209.0,0.00025783]
[1725398021755,0.172234,58210.0,58209.0,0.05164084]
[1725398022363,0.26200578,58210.0,58209.0,0.05164084]
[1725398023161,1.37736578,58210.0,58209.0,0.05164084]
[1725398023361,1.40736578,58210.0,58209.0,0.05164084]
[1725398023762,1.40736578,58210.0,58209.0,0.00025783]
[1725398023763,1.49328278,58210.0,58209.0,0.00025783]
[1725398023957,0.257772,58205.0,58204.0,0.05538301]
[1725398024164,0.257778,58204.0,58203.0,0.05138301]
[1725398024361,0.257778,58204.0,58201.0,0.3608]
[1725398024362,0.51584,58204.0,58201.0,0.3608]
[1725398024656,0.6,58204.0,58203.0,0.05140554]
[1725398025158,1.473218,58204.0,58203.0,0.05140554]
[1725398025349,1.523218,58204.0,58203.0,0.05140554]
[1725398025757,1.606144,58204.0,58203.0,0.05140554]
[1725398025951,1.606144,58204.0,58203.0,5.4e-07]
[1725398026362,1.606144,58204.0,58203.0,0.00200054]
[1725398027062,1.608144,58204.0,58203.0,0.00200054]
[1725398027274,1.69387877,58204.0,58203.0,5.4e-07]
[1725398027458,1.69587877,58204.0,58203.0,5.4e-07]
[1725398027758,0.257799,58199.0,58198.0,0.00025783]
[1725398027962,0.45678836,58199.0,58198.0,0.00025783]
[1725398028164,1.57226836,58199.0,58198.0,0.00025783]
[1725398029158,1.503679,58199.0,58198.0,0.00025783]
[1725398029367,1.503679,58199.0,58198.0,0.00325783]
[1725398029665,1.503679,58199.0,58198.0,0.00625783]
[1725398030665,0.257817,58195.0,58194.0,0.004]
[1725398030865,0.171892,58190.0,58189.0,0.004]
[1725398031065,0.085951,58187.0,58186.0,0.3638]
[1725398031267,0.186351,58187.0,58186.0,0.36762214]
[1725398031568,0.185951,58187.0,58186.0,0.36762214]
[1725398031768,0.271902,58187.0,58186.0,0.003]
[1725398031962,0.271902,58187.0,58181.0,0.22715783]
[1725398031963,0.1,58187.0,58181.0,0.00425783]
[1725398032267,0.085946,58191.0,58181.0,0.00025783]
[1725398032268,0.272316,58182.0,58181.0,0.00025783]
[1725398032664,1.764316,58182.0,58181.0,0.00025783]
[1725398033264,1.764316,58182.0,58181.0,0.00325783]
[1725398033265,1.761316,58182.0,58181.0,0.00325783]
[1725398034060,1.661316,58182.0,58181.0,0.00625783]
[1725398034264,1.761316,58182.0,58181.0,0.00625783]
[1725398047084,0.0004,58182.0,58181.0,0.19521783]
[1725398048179,0.085955,58185.0,58182.0,0.085957]
[1725398048685,0.085955,58185.0,58184.0,0.0004]
[1725398049086,0.085955,58185.0,58184.0,0.0768]
[1725398050494,0.085955,58185.0,58184.0,0.4376]
[1725398050686,0.085955,58185.0,58184.0,0.0768]
[1725398050986,0.086955,58185.0,58184.0,0.4376]
[1725398052696,0.086955,58185.0,58184.0,0.5376]
[1725398052900,0.086955,58185.0,58184.0,0.18058235]
[1725398053799,0.001,58185.0,58184.0,0.26653735]
[1725398056703,0.001,58185.0,58184.0,0.62733735]
[1725398065094,0.001,58185.0,58184.0,0.55393735]
[1725398069697,0.001,58185.0,58184.0,0.19313735]
[1725398069901,0.001,58185.0,58184.0,0.55393735]
[1725398077105,0.001,58185.0,58184.0,0.68490774]
[1725398080209,0.001,58185.0,58184.0,0.49217039]
[1725398080416,0.15571678,58185.0,58184.0,0.21732074]
[1725398080602,0.21911678,58185.0,58184.0,0.13137039]
[1725398081009,0.21911678,58185.0,58184.0,0.08634777]
[1725398081218,0.21911678,58185.0,58184.0,0.0004]
[1725398081406,0.21911678,58185.0,58184.0,0.08634777]
[1725398082705,0.150354,58185.0,58184.0,0.08634777]
[1725398083410,0.150354,58185.0,58184.0,0.44714777]
[1725398083910,0.150354,58185.0,58184.0,0.3612]
[1725398084210,0.150354,58185.0,58184.0,0.44713576]
[1725398085209,0.150354,58185.0,58184.0,0.3612]
[1725398085715,0.150354,58185.0,58184.0,0.57810693]
[1725398086303,0.150354,58185.0,58184.0,0.58110693]
[1725398086502,0.150354,58185.0,58184.0,0.57810693]
[1725398087517,0.150354,58185.0,58184.0,0.21730693]
[1725398088213,0.150354,58185.0,58184.0,0.21730751]
[1725398088415,0.150354,58185.0,58184.0,0.30326251]
[1725398088611,0.150354,58185.0,58184.0,0.17228866]
[1725398088909,0.150354,58185.0,58184.0,0.30326199]
[1725398090807,0.150354,58185.0,58184.0,0.21732833]
[1725398092419,0.150354,58185.0,58184.0,0.21729609]
[1725398093011,0.346308,58185.0,58184.0,0.0004]
[1725398093212,1.547862,58185.0,58184.0,0.06914358]
[1725398093412,1.547862,58185.0,58184.0,0.0004]
[1725398094507,1.55180634,58185.0,58184.0,0.0004]
[1725398094709,0.252165,58184.0,58183.0,0.06874358]
[1725398094914,1.348965,58184.0,58183.0,0.06874358]
[1725398095110,2.03486799,58184.0,58183.0,0.06874358]
[1725398095918,2.03486799,58184.0,58183.0,0.06974358]
[1725398096108,1.948965,58184.0,58183.0,0.06974358]
[1725398096918,1.948965,58184.0,58183.0,0.001]
[1725398099624,0.257874,58182.0,58181.0,0.00025783]
[1725398099819,0.368274,58182.0,58181.0,0.00025783]
[1725398100513,1.483914,58182.0,58181.0,0.00025783]
[1725398100821,1.483914,58182.0,58181.0,0.00225783]
[1725398101520,0.085964,58178.0,58168.0,0.10309727]
[1725398101713,0.257922,58171.0,58168.0,0.10309727]
[1725398101913,0.171952,58170.0,58168.0,0.10309727]
[1725398102122,0.303452,58170.0,58168.0,0.10309727]
[1725398102322,0.303052,58170.0,58168.0,0.10309727]
[1725398102817,0.302052,58170.0,58168.0,0.10309727]
[1725398103524,0.303052,58170.0,58169.0,0.01]
[1725398104121,0.449028,58170.0,58169.0,0.01]
[1725398104825,0.446028,58170.0,58169.0,0.01]
[1725398105825,0.447028,58170.0,58169.0,0.018]
[1725398107516,0.387028,58170.0,58169.0,0.018]
[1725398107821,0.487028,58170.0,58169.0,0.018]
[1725398114128,0.419428,58170.0,58169.0,0.018]
[1725398114329,0.355928,58170.0,58169.0,0.018]
[1725398118444,0.465928,58170.0,58169.0,0.018]
[1725398118735,0.551904,58170.0,58169.0,0.018]
[1725398118938,0.620404,58170.0,58169.0,0.018]
[1725398119635,2.120404,58170.0,58169.0,0.016]
[1725398120433,2.119404,58170.0,58169.0,0.012]
[1725398120630,2.118404,58170.0,58169.0,0.004]
[1725398120827,2.119404,58170.0,58169.0,0.011]
[1725398121636,2.118404,58170.0,58169.0,0.007]
[1725398122235,2.118404,58170.0,58164.0,0.00025783]
[1725398122236,0.257949,58165.0,58164.0,0.00025783]
[1725398122430,0.467949,58165.0,58164.0,0.00025783]
[1725398122820,1.967949,58165.0,58164.0,0.00025783]
[1725398123625,1.968949,58165.0,58164.0,0.00825783]
[1725398124432,1.869949,58165.0,58164.0,0.01625783]
[1725398124634,1.969949,58165.0,58164.0,0.01625783]
[1725398124932,1.97377829,58165.0,58164.0,0.01625783]
[1725398125239,1.97877829,58165.0,58164.0,0.00925783]
[1725398125735,1.98477829,58165.0,58164.0,0.00125783]
[1725398129930,1.98557829,58165.0,58164.0,0.00125783]
[1725398131533,1.88557829,58165.0,58164.0,0.00125783]
[1725398131725,1.98557829,58165.0,58164.0,0.00125783]
[1725398146843,0.17219481,58165.0,58164.0,0.00425783]
[1725398147044,0.28959529,58165.0,58164.0,0.09024283]
[1725398148241,0.35817781,58165.0,58164.0,0.15896583]
[1725398148440,1.85817781,58165.0,58164.0,0.15896583]
[1725398150245,0.35817781,58165.0,58164.0,0.15896583]
[1725398150750,1.85817781,58165.0,58164.0,0.15896583]
[1725398152348,0.27219481,58165.0,58164.0,0.15896583]
[1725398159949,0.27219481,58165.0,58164.0,0.09024283]
[1725398161351,0.35817781,58165.0,58164.0,0.00425783]
[1725398161548,0.28959529,58165.0,58164.0,0.00425783]
[1725398165363,0.28959529,58165.0,58164.0,0.09024283]
[1725398165662,0.20361229,58165.0,58164.0,0.09024283]
[1725398165864,0.28959529,58165.0,58164.0,0.09024283]
[1725398166169,0.28959529,58165.0,58164.0,0.00425783]
[1725398166348,0.20361229,58165.0,58164.0,0.00425783]
[1725398166960,0.28959529,58165.0,58164.0,0.00425783]
[1725398167354,0.20361229,58165.0,58164.0,0.00425783]
[1725398167660,0.28959529,58165.0,58164.0,0.00425783]
[1725398167863,0.20361229,58165.0,58164.0,0.00425783]
[1725398171270,0.20361229,58165.0,58164.0,0.36505783]
[1725398172157,0.20361229,58165.0,58164.0,0.45104283]
[1725398172357,0.0138,58165.0,58164.0,0.55104283]
[1725398173583,0.1138,58165.0,58164.0,0.45104283]
[1725398173776,0.0068,58165.0,58164.0,0.55104283]
[1725398173971,0.0128,58165.0,58164.0,0.55204283]
[1725398174680,0.0118,58165.0,58164.0,0.55104283]
[1725398174977,0.097783,58165.0,58164.0,0.55104283]
[1725398175472,0.0118,58165.0,58164.0,0.55104283]
[1725398175677,0.0118,58165.0,58164.0,1.7566956]
[1725398176474,0.0118,58165.0,58164.0,2.2034806]
[1725398176676,0.004,58172.0,58170.0,0.171952]
[1725398176881,0.08576627,58173.0,58172.0,0.171946]
[1725398177187,0.08576627,58173.0,58172.0,0.532746]
[1725398177478,0.08576627,58173.0,58172.0,1.74291993]
[1725398177680,0.00025783,58175.0,58174.0,0.08597]
[1725398177875,0.00025783,58175.0,58174.0,0.78597]
[1725398178076,0.00025783,58175.0,58174.0,1.30165]
[1725398178779,0.00025783,58175.0,58174.0,1.38862]
[1725398179576,0.00025783,58175.0,58174.0,0.08597]
[1725398179886,0.00025783,58175.0,58174.0,0.18797]
[1725398180881,0.00025783,58175.0,58174.0,0.18997]
[1725398182082,0.00025783,58175.0,58174.0,0.19384533]
[1725398182781,0.1,58178.0,58177.0,0.085966]
[1725398182986,0.1,58178.0,58177.0,0.5152442]
[1725398183184,0.085962,58180.0,58178.0,0.085964]
[1725398184587,0.088962,58180.0,58179.0,0.0004]
[1725398184786,0.088962,58180.0,58179.0,0.05174061]
[1725398184986,0.088962,58180.0,58179.0,0.0004]
[1725398185788,0.09487026,58180.0,58179.0,0.0004]
[1725398186492,0.090962,58180.0,58179.0,0.086363]
[1725398187176,0.088962,58180.0,58179.0,0.186363]
[1725398187490,0.091962,58180.0,58179.0,0.186363]
[1725398192896,0.091962,58180.0,58179.0,0.547163]
[1725398193498,1.591962,58180.0,58179.0,0.547163]
[1725398196898,1.591962,58180.0,58179.0,0.4612]
[1725398197991,0.006,58180.0,58179.0,0.547163]
[1725398199007,0.006,58180.0,58179.0,1.748766]
[1725398199708,0.006,58180.0,58179.0,1.83430052]
[1725398199996,0.085951,58187.0,58184.0,0.085955]
[1725398200198,0.00025783,58185.0,58184.0,0.547155]
[1725398200397,0.00025783,58185.0,58184.0,0.61565085]
[1725398201504,0.00025783,58185.0,58184.0,0.547155]
[1725398201705,0.00025783,58185.0,58184.0,0.61568435]
[1725398202193,0.00225783,58185.0,58184.0,0.61568435]
[1725398202391,0.00225783,58185.0,58184.0,0.547155]
[1725398202696,0.00225783,58185.0,58184.0,0.61570455]
[1725398202894,0.00325783,58185.0,58184.0,0.547155]
[1725398205407,0.00325783,58185.0,58184.0,0.85002443]
[1725398205599,0.00325783,58185.0,58184.0,0.76798561]
[1725398206503,0.00225783,58185.0,58184.0,0.76798561]
[1725398206701,0.00025783,58185.0,58184.0,0.76798561]
[1725398206997,0.00025783,58185.0,58184.0,0.77498561]
[1725398207499,0.00125783,58185.0,58184.0,0.78298561]
[1725398208292,0.00125783,58185.0,58184.0,1.89858561]
[1725398209994,0.00125783,58185.0,58184.0,2.25938561]
[1725398213108,0.00125783,58185.0,58184.0,2.34534061]
[1725398214313,0.00125783,58185.0,58184.0,2.25938561]
[1725398214719,0.00125783,58185.0,58184.0,2.34534061]
[1725398215307,0.00125783,58185.0,58184.0,2.25938561]
[1725398215715,0.00125783,58185.0,58184.0,2.34534061]
[1725398217213,0.00125783,58185.0,58184.0,1.14378561]
[1725398217718,0.00125783,58185.0,58184.0,1.74534061]
[1725398218104,0.00125783,58185.0,58184.0,0.93778561]
[1725398218309,0.00125783,58185.0,58184.0,1.29858561]
[1725398218712,0.00125783,58185.0,58184.0,0.78298561]
[1725398218907,0.00125783,58185.0,58184.0,1.29858561]
[1725398220017,0.00125783,58185.0,58184.0,0.78298561]
[1725398220525,0.00125783,58185.0,58184.0,1.89858561]
[1725398222618,0.00125783,58185.0,58184.0,0.78298561]
[1725398222816,0.00125783,58185.0,58184.0,1.29858561]
[1725398223318,0.00125783,58185.0,58184.0,0.78298561]
[1725398223520,0.00125783,58185.0,58184.0,0.42218561]
[1725398223714,0.00125783,58185.0,58184.0,1.29858561]
[1725398224418,0.00125783,58185.0,58184.0,0.78298561]
[1725398225215,0.00125783,58185.0,58184.0,1.29858561]
[1725398225415,0.00125783,58185.0,58184.0,0.78298561]
[1725398226124,0.00125783,58185.0,58184.0,0.42218561]
[1725398226311,0.00125783,58185.0,58184.0,1.14378561]
[1725398226516,0.00125783,58185.0,58184.0,0.42218561]
[1725398226716,0.00125783,58185.0,58184.0,1.14378561]
[1725398229417,0.00125783,58185.0,58184.0,1.22974061]
[1725398231819,0.00125783,58185.0,58184.0,2.34534061]
[1725398233018,0.00125783,58185.0,58184.0,1.82974061]
[1725398233323,0.00125783,58185.0,58184.0,2.34534061]
[1725398235030,0.004,58195.0,58185.0,0.51556]
[1725398235228,0.004,58199.0,58194.0,0.822]
[1725398235415,0.1391,58200.0,58199.0,0.185933]
[1725398235621,0.1391,58200.0,58199.0,0.546733]
[1725398235921,0.1391,58200.0,58199.0,0.632666]
[1725398236122,0.0732,58206.0,58205.0,0.085924]
[1725398236322,0.1361,58206.0,58205.0,0.186324]
[1725398237222,0.1361,58206.0,58205.0,0.547124]
[1725398237724,0.1361,58206.0,58205.0,0.63298003]
[1725398238429,0.1361,58206.0,58205.0,0.76389862]
[1725398238622,0.1391,58206.0,58205.0,0.63398003]
[1725398238823,0.1451,58206.0,58205.0,0.549124]
[1725398241322,0.10212016,58206.0,58205.0,0.68004059]
[1725398242323,0.09612016,58206.0,58205.0,0.68583652]
[1725398242524,0.0699,58206.0,58205.0,0.77155267]
[1725398242723,0.0669,58206.0,58205.0,0.77255267]
[1725398243532,0.0669,58206.0,58205.0,0.55591993]
[1725398244119,0.0669,58206.0,58205.0,0.55391993]
[1725398244428,0.0669,58206.0,58205.0,0.55491993]
[1725398244626,0.0669,58206.0,58205.0,0.45491993]
[1725398244830,0.0669,58206.0,58205.0,0.55491993]
[1725398248433,0.0699,58206.0,58205.0,0.55391993]
[1725398250037,0.0709,58206.0,58205.0,0.55091993]
[1725398250236,0.0679,58206.0,58205.0,0.55091993]
[1725398250439,0.0699,58206.0,58205.0,0.55091993]
[1725398250834,0.0689,58206.0,58205.0,0.55091993]
[1725398251434,0.0699,58206.0,58205.0,0.55091993]
[1725398251632,0.0709,58206.0,58205.0,0.55091993]
[1725398253442,0.0679,58206.0,58205.0,0.55091993]
[1725398253637,0.0709,58206.0,58205.0,0.55091993]
[1725398254036,0.0679,58206.0,58205.0,0.55091993]
[1725398254339,0.0709,58206.0,58205.0,0.55091993]
[1725398255041,0.157823,58206.0,58205.0,0.55091993]
[1725398255340,0.0719,58206.0,58205.0,0.55091993]
[1725398257342,0.155823,58206.0,58205.0,0.55091993]
[1725398257545,0.157823,58206.0,58205.0,0.55091993]
[1725398259530,0.154823,58206.0,58205.0,0.46499593]
[1725398259744,0.343746,58206.0,58205.0,0.3612]
[1725398259936,0.243746,58206.0,58205.0,0.42983105]
[1725398260144,0.241746,58206.0,58205.0,0.42983105]
[1725398260339,1.744746,58206.0,58205.0,0.42983105]
[1725398261541,1.744746,58206.0,58205.0,0.3612]
[1725398262446,1.744746,58206.0,58205.0,0.42985659]
[1725398262649,1.744746,58206.0,58205.0,0.3612]
[1725398264138,1.744746,58206.0,58205.0,0.0004]
[1725398264334,1.744746,58206.0,58205.0,0.3612]
[1725398264752,1.81336381,58206.0,58205.0,0.3612]
[1725398265445,1.744746,58206.0,58205.0,0.3612]
[1725398266949,1.744746,58206.0,58205.0,0.49211967]
[1725398270545,1.658823,58206.0,58205.0,0.49211967]
[1725398272953,1.658823,58206.0,58205.0,0.49211865]
[1725398276046,1.658823,58206.0,58205.0,0.13131865]
[1725398276353,1.658823,58206.0,58205.0,0.49211865]
[1725398277444,1.658823,58206.0,58205.0,0.13131865]
[1725398277642,1.658823,58206.0,58205.0,0.49211865]
[1725398279164,1.591923,58206.0,58205.0,0.13131865]
[1725398280352,1.591923,58206.0,58205.0,0.0004]
[1725398280557,1.591923,58206.0,58205.0,0.13132131]
[1725398281149,1.591923,58206.0,58205.0,0.49212131]
[1725398281556,0.006,58206.0,58205.0,0.66396931]
[1725398281761,0.006,58206.0,58205.0,0.8915088]
[1725398282553,0.003,58206.0,58205.0,0.8915088]
[1725398282760,0.005,58206.0,58205.0,0.8915088]
[1725398283663,0.005,58206.0,58205.0,0.8055848]
[1725398286061,0.005,58206.0,58205.0,0.9055848]
[1725398286363,0.00025783,58211.0,58210.0,0.085917]
[1725398286551,0.00025783,58211.0,58210.0,0.67763831]
[1725398286751,0.00025783,58211.0,58210.0,0.67803831]
[1725398287771,0.00525783,58211.0,58210.0,0.67903831]
[1725398288471,0.00625783,58211.0,58210.0,0.31923831]
[1725398288764,0.00625783,58211.0,58210.0,0.68003831]
[1725398291753,0.00625783,58211.0,58210.0,0.58003831]
[1725398291958,0.00625783,58211.0,58210.0,0.68003831]
[1725398292260,0.00625783,58211.0,58210.0,0.68398944]
[1725398294169,0.00625783,58211.0,58210.0,0.55306813]
[1725398294567,0.00625783,58211.0,58210.0,0.19226813]
[1725398294873,0.00625783,58211.0,58210.0,0.55306813]
[1725398297068,0.00625783,58211.0,58210.0,0.449117]
[1725398297263,0.09217283,58211.0,58210.0,0.3632]
[1725398297467,1.86930283,58211.0,58210.0,0.3632]
[1725398297663,1.87930283,58211.0,58210.0,0.3632]
[1725398297871,1.86930283,58211.0,58210.0,0.3632]
[1725398298073,2.98466283,58211.0,58210.0,0.3632]
[1725398300074,2.9884354,58211.0,58210.0,0.3632]
[1725398300365,2.9884354,58211.0,58210.0,0.0024]
[1725398300564,2.9884354,58211.0,58210.0,0.3632]
[1725398301669,2.9484354,58211.0,58210.0,0.3632]
[1725398304577,2.9484354,58211.0,58210.0,0.43186002]
[1725398304776,2.9484354,58211.0,58210.0,0.07106002]
[1725398304971,3.01703646,58211.0,58210.0,0.0024]
[1725398305172,2.9484354,58211.0,58210.0,0.0024]
[1725398305480,2.9984354,58211.0,58210.0,0.0024]
[1725398305870,3.06703192,58211.0,58210.0,0.0024]
[1725398306271,3.01703192,58211.0,58210.0,0.0024]
[1725398306574,2.41703192,58211.0,58210.0,0.0024]
[1725398307082,2.3484354,58211.0,58210.0,0.0024]
[1725398307469,2.41703192,58211.0,58210.0,0.0024]
[1725398307970,2.3484354,58211.0,58210.0,0.0024]
[1725398309784,1.8330754,58211.0,58210.0,0.0024]
[1725398314177,1.8330754,58211.0,58210.0,0.07105177]
[1725398314895,1.8950754,58211.0,58210.0,0.0024]
[1725398316669,1.96368376,58211.0,58210.0,0.0024]
[1725398317379,1.9850754,58211.0,58210.0,0.0024]
[1725398317683,1.9850754,58211.0,58210.0,0.05390562]
[1725398318072,1.9850754,58211.0,58204.0,0.004]
[1725398318073,2.9286054,58211.0,58204.0,0.004]
[1725398318276,0.171846,58206.0,58205.0,0.06867473]
[1725398318475,0.271846,58206.0,58205.0,0.06867473]
[1725398318874,1.771846,58206.0,58205.0,0.06867473]
[1725398320576,1.772846,58206.0,58205.0,0.06867473]
[1725398320778,1.774846,58206.0,58205.0,0.06867473]
[1725398321378,0.085927,58203.0,58202.0,0.085928]
[1725398321577,0.085933,58200.0,58199.0,0.085933]
[1725398321780,0.086333,58200.0,58199.0,0.085933]
[1725398323080,0.084333,58200.0,58199.0,0.085933]
[1725398323790,0.084333,58200.0,58199.0,0.093933]
[1725398325687,0.08813262,58200.0,58199.0,0.093933]
[1725398329191,0.08813262,58200.0,58199.0,0.008]
[1725398332987,0.17406562,58200.0,58199.0,0.008]
[1725398333188,0.27406562,58200.0,58199.0,0.008]
[1725398333390,0.35999862,58200.0,58199.0,0.008]
[1725398333789,0.46999862,58200.0,58199.0,0.008]
[1725398334095,1.96999862,58200.0,58199.0,0.008]
[1725398335092,3.08547862,58200.0,58199.0,0.008]
[1725398337699,3.02547862,58200.0,58199.0,0.008]
[1725398343497,3.11141162,58200.0,58199.0,0.008]
[1725398344801,3.11141162,58200.0,58199.0,0.005]
[1725398345099,3.11141162,58200.0,58199.0,0.007]
[1725398345491,3.11141162,58200.0,58199.0,0.002]
[1725398345691,3.11141162,58200.0,58199.0,0.006]
[1725398349498,2.51141162,58200.0,58199.0,0.006]
[1725398353099,1.99593162,58200.0,58199.0,0.006]
[1725398361119,1.99593162,58200.0,58199.0,0.05750647]
[1725398362014,2.08169763,58200.0,58199.0,0.05750647]
[1725398362316,1.99593162,58200.0,58199.0,0.006]
[1725398362511,2.08179479,58200.0,58199.0,0.006]
[1725398363302,1.99593162,58200.0,58199.0,0.006]
[1725398363507,1.99593162,58200.0,58194.0,0.07287537]
[1725398363508,0.343756,58195.0,58194.0,0.07287537]
[1725398363707,0.924556,58195.0,58194.0,1e-08]
[1725398363903,0.924956,58195.0,58194.0,0.05157639]
[1725398364914,0.927956,58195.0,58194.0,0.05157638]
[1725398365108,0.928956,58195.0,58194.0,0.05157638]
[1725398365305,2.044476,58195.0,58194.0,3.8e-07]
[1725398366224,0.51556,58194.0,58173.0,0.0046]
[1725398366517,0.51556,58194.0,58165.0,0.49807749]
[1725398366518,0.257931,58169.0,58168.0,2e-08]
[1725398366709,0.257931,58169.0,58165.0,0.13727749]
[1725398366710,0.257946,58166.0,58165.0,0.04719951]
[1725398366916,0.171966,58165.0,58164.0,0.0008]
[1725398367719,0.170966,58165.0,58164.0,0.0008]
[1725398368521,0.173966,58165.0,58164.0,0.0008]
[1725398369316,0.174966,58165.0,58164.0,0.0008]
[1725398370420,0.17880932,58165.0,58164.0,0.0008]
[1725398371218,0.171976,58162.0,58161.0,0.1329]
[1725398371417,0.271976,58162.0,58161.0,0.1329]
[1725398373617,0.271976,58162.0,58159.0,0.00025783]
[1725398373618,0.171982,58160.0,58159.0,0.00025783]
[1725398373821,0.170982,58160.0,58159.0,0.00025783]
[1725398374816,0.256973,58160.0,58159.0,8.3e-07]
[1725398375110,0.406973,58160.0,58159.0,8.3e-07]
[1725398375712,0.086017,58142.0,58141.0,0.10310373]
[1725398375926,0.272034,58142.0,58141.0,0.10310373]
[1725398376628,0.186017,58142.0,58141.0,0.10310373]
[1725398376925,0.272034,58142.0,58141.0,0.10310373]
[1725398377728,0.186017,58142.0,58141.0,0.10310373]
[1725398377918,0.412034,58142.0,58141.0,0.10310373]
[1725398378220,0.326017,58142.0,58141.0,0.10510373]
[1725398378927,0.32980673,58142.0,58141.0,0.10510373]
[1725398379423,0.326017,58142.0,58141.0,0.10510373]
[1725398381424,0.326017,58142.0,58141.0,0.002]
[1725398384322,0.326017,58142.0,58141.0,0.3628]
[1725398386530,0.086017,58142.0,58141.0,0.448819]
[1725398388430,0.086017,58142.0,58141.0,0.3628]
[1725398390532,0.086017,58142.0,58141.0,0.002]
[1725398395732,0.086017,58142.0,58141.0,0.088019]
[1725398397242,0.172034,58142.0,58141.0,0.002]
[1725398397426,0.39631983,58142.0,58141.0,0.002]
[1725398397631,0.258051,58142.0,58141.0,0.002]
[1725398397829,0.252034,58142.0,58141.0,0.002]
[1725398398123,0.172034,58142.0,58141.0,0.002]
[1725398398331,0.3764712,58142.0,58141.0,0.002]
[1725398398742,0.086028,58135.0,58134.0,0.008]
[1725398398926,0.086028,58135.0,58131.0,0.149633]
[1725398398927,0.086032,58132.0,58131.0,0.149633]
[1725398399337,0.085032,58132.0,58131.0,0.149633]
[1725398400242,0.325032,58132.0,58131.0,0.149633]
[1725398401029,0.325032,58132.0,58131.0,0.0636]
[1725398402135,0.185032,58132.0,58131.0,0.0636]
[1725398403236,0.186032,58132.0,58131.0,0.06743404]
[1725398404648,0.186832,58132.0,58131.0,0.06743404]
[1725398405843,0.186832,58132.0,58131.0,0.42823404]
[1725398409241,0.186832,58132.0,58131.0,0.55932432]
[1725398409441,0.186832,58132.0,58131.0,0.55549028]
[1725398412949,0.272864,58132.0,58131.0,0.55549028]
[1725398413242,0.272864,58132.0,58131.0,0.19469028]
[1725398413543,0.272864,58132.0,58131.0,0.55549028]
[1725398415344,0.272864,58132.0,58131.0,0.19469028]
[1725398415546,0.272864,58132.0,58131.0,0.55549028]
[1725398416243,0.272864,58132.0,58131.0,0.64141508]
[1725398416836,0.272864,58132.0,58131.0,0.0636]
[1725398420449,0.086034,58131.0,58130.0,0.086035]
[1725398420646,0.086834,58131.0,58130.0,0.086035]
[1725398422155,0.085035,58130.0,58129.0,0.1553248]
[1725398422450,0.085835,58130.0,58129.0,0.2413618]
[1725398423258,0.085835,58130.0,58129.0,0.2433618]
[1725398424960,0.085835,58130.0,58129.0,0.157437]
[1725398427464,0.085835,58130.0,58129.0,0.088037]
[1725398430154,0.085835,58130.0,58129.0,0.21913102]
[1725398431359,0.085835,58130.0,58129.0,0.088037]
[1725398433062,0.185835,58130.0,58129.0,0.002]
[1725398433266,0.718705,58130.0,58129.0,0.002]
[1725398433561,0.258129,58125.0,58124.0,0.1112442]
[1725398433772,0.769729,58125.0,58124.0,0.1032442]
[1725398435259,0.172096,58121.0,58120.0,0.008]
[1725398435466,0.086054,58117.0,58116.0,0.06873484]
[1725398435761,0.185054,58117.0,58116.0,0.06873484]
[1725398435959,0.185854,58117.0,58116.0,0.06873484]
[1725398436151,0.271108,58117.0,58116.0,0.06873484]
[1725398436355,0.086057,58115.0,58114.0,0.43335047]
[1725398436563,0.086857,58115.0,58114.0,0.43335047]
[1725398436765,0.172914,58115.0,58114.0,0.42953484]
[1725398436964,0.172914,58115.0,58114.0,0.3608]
[1725398437156,0.086857,58115.0,58114.0,0.3608]
[1725398437757,0.172914,58115.0,58114.0,0.3608]
[1725398437966,0.086857,58115.0,58114.0,0.3608]
[1725398438263,0.172914,58115.0,58114.0,0.3608]
[1725398438454,0.1767498,58115.0,58114.0,0.3608]
[1725398438656,0.084065,58110.0,58109.0,0.06873484]
[1725398438862,0.184865,58110.0,58109.0,0.06873484]
[1725398439964,0.185865,58110.0,58109.0,0.07673484]
[1725398440754,0.185865,58110.0,58109.0,0.008]
[1725398445463,0.185865,58110.0,58109.0,0.454866]